Workbook

Sheet Cover page

Sheet Versions
A2: Version | B2: Date | C2: Description
A3: v.1 | B3: 2018-03-31 | C3: Draft submitted to the AER for approval

Sheet SCS charges 2018-19
A2: Tariff Class | B2: Tariff Description | C2: NTC | D2: Billing Code Permutations3 | E2: Tariff / Charge Element | F2: Unit | G2: DUOS1 | H2: JURISDICTIONAL1 | I2: DPPC1 | J2: NUOS1
A3: CAC | B3: EG 11kV2 | C3: 3000 | E3: Supply | F3: $/day | G3: Site-specific prices are confidential
E4: Demand | F4: $/kVA/month | G4: 9.651 | H4: 0 | I4: 1.392 | J4: =G4+H4+I4 -> 11.043
E5: Volume Off-Peak | F5: c/kWh | G5: 0.393 | H5: 0 | I5: 0.156 | J5: =G5+H5+I5 -> 0.549
E6: Volume Peak | F6: c/kWh | G6: 0.393 | H6: 0 | I6: 0.156 | J6: =G6+H6+I6 -> 0.549
B7: 11kV Bus | C7: 4000 | E7: Supply | F7: $/day | G7: Site-specific prices are confidential
E8: Demand | F8: $/kVA/month | G8: 6.684 | H8: 0 | I8: 1.392 | J8: =G8+H8+I8 -> 8.076
E9: Volume Off-Peak | F9: c/kWh | G9: 0.044 | H9: 0 | I9: 0.069 | J9: 0.113
E10: Volume Peak | F10: c/kWh | G10: 0.044 | H10: 0 | I10: 0.069 | J10: 0.113
B11: 11kV Line | C11: 4500 | E11: Supply | F11: $/day | G11: Site-specific prices are confidential
E12: Demand | F12: $/kVA/month | G12: 10.342 | H12: 0 | I12: 1.392 | J12: =G12+H12+I12 -> 11.734
E13: Volume Off-Peak | F13: c/kWh | G13: 0.393 | H13: 0 | I13: 0.156 | J13: 0.549
E14: Volume Peak | F14: c/kWh | G14: 0.393 | H14: 0 | I14: 0.156 | J14: 0.549
B15: Demand ToU 11kV | C15: 7400 | E15: Supply - CAV | F15: $/day/$M-CAV | G15: 30.428 | H15: 0 | I15: 0 | J15: 30.428
E16: Supply - NCCAV | F16: $/day/$M-NCCAV | G16: 68.441 | H16: 0 | I16: 0 | J16: 68.441
E17: Peak Demand | F17: $/kVA/month | G17: 8.271 | H17: 0 | I17: 2.804 | J17: 11.075
E18: Excess Demand | F18: $/kVA/month | G18: 1.654 | H18: 0 | I18: 0.561 | J18: 2.215
E19: Volume Flat | F19: c/kWh | G19: 0.926 | H19: 0 | I19: 0.409 | J19: 1.335
B20: HV Demand2 | C20: 8000 | E20: Supply | F20: $/day | G20: 24.78 | H20: 0 | I20: 20.87 | J20: 45.65
E21: Demand | F21: $/kVA/month | G21: 9.869 | H21: 0 | I21: 2.63 | J21: 12.499
E22: Volume Flat | F22: c/kWh | G22: 0.393 | H22: 0 | I22: 0.356 | J22: 0.749
A23: SAC | B23: Demand Large | C23: 8100 | E23: Supply | F23: $/day | G23: 28.354 | H23: 0 | I23: 5.407 | J23: 33.761
E24: Demand | F24: $/kVA/month | G24: 13.898 | H24: 0 | I24: 2.717 | J24: 16.615
E25: Volume Flat | F25: c/kWh | G25: 0.213 | H25: 0 | I25: 0.159 | J25: 0.372
B26: Demand Small | C26: 8300 | E26: Supply | F26: $/day | G26: 3.204 | H26: 0 | I26: 1.315 | J26: 4.519
E27: Demand | F27: $/kVA/month | G27: 15.54 | H27: 0 | I27: 2.629 | J27: 18.169
E28: Volume Flat | F28: c/kWh | G28: 0 | H28: 0 | I28: 0.392 | J28: 0.392
B29: Demand ToU LV | C29: 7200 | E29: Supply | F29: $/day | G29: 4.261 | H29: 0 | I29: 0 | J29: 4.261
E30: Peak Demand | F30: $/kVA/month | G30: 8.416 | H30: 0 | I30: 2.717 | J30: 11.133
E31: Excess Demand | F31: $/kVA/month | G31: 1.683 | H31: 0 | I31: 0.543 | J31: 2.226
E32: Volume Flat | F32: c/kWh | G32: 2.476 | H32: 0 | I32: 0.459 | J32: 2.935
B33: Business Flat | C33: 8500 | D33: 8500/8520/8550/8570 | E33: Supply | F33: $/Day | G33: 0.466 | H33: 0 | I33: 0.185 | J33: 0.651
E34: Volume Flat | F34: c/kWh | G34: 8.066 | H34: 0 | I34: 1.034 | J34: 9.1
B35: Business ToU | C35: 8800 | D35: 8800/8820/8850/8870 | E35: Supply | F35: $/day | G35: 0.466 | H35: 0 | I35: 0.185 | J35: 0.651
E36: Volume Off-Peak | F36: c/kWh | G36: 6.187 | H36: 0 | I36: 0.758 | J36: 6.945
E37: Volume Peak | F37: c/kWh | G37: 9.79 | H37: 0 | I37: 1.302 | J37: 11.092
B38: Business Demand | C38: 7100 | D38: 7100/7150 | E38: Supply | F38: $/day | G38: 0.439 | H38: 0 | I38: 0 | J38: 0.439
E39: Demand | F39: $/kW/month | G39: 6.552 | H39: 0 | I39: 2.159 | J39: 8.711
E40: Volume Flat | F40: c/kWh | G40: 4.109 | H40: 0 | I40: 0.102 | J40: 4.211
B41: Residential Flat | C41: 8400 | D41: 8400/8420/8450/8470 | E41: Supply | F41: $/day | G41: 0.414 | H41: 0 | I41: 0.066 | J41: 0.48
E42: Volume Flat | F42: c/kWh | G42: 7.086 | H42: 0 | I42: 1.342 | J42: 8.428
B43: Residential ToU | C43: 8900 | D43: 8900/8920/8950/8970 | E43: Supply | F43: $/day | G43: 0.414 | H43: 0 | I43: 0.066 | J43: 0.48
E44: Volume Off-Peak | F44: c/kWh | G44: 5.589 | H44: 0 | I44: 0.216 | J44: 5.805
E45: Volume Sholuder | F45: c/kWh | G45: 6.086 | H45: 0 | I45: 1.342 | J45: 7.428
E46: Volume Peak | F46: c/kWh | G46: 12.706 | H46: 0 | I46: 3.775 | J46: 16.481
B47: Residential Demand | C47: 7000 | D47: 7000/7050 | E47: Supply | F47: $/day | G47: 0.38 | H47: 0 | I47: 0 | J47: 0.38
E48: Demand | F48: $/kW/month | G48: 6.084 | H48: 0 | I48: 1.604 | J48: 7.688
E49: Volume Flat | F49: c/kWh | G49: 2.269 | H49: 0 | I49: 0.472 | J49: 2.741
B50: Residential Lifestyle | C50: 6400 | D50: 6400/6450 | E50: Network access allowance:
E51: Access Band 1 | F51: $/month | G51: 22.264 | H51: 0 | I51: 2.01 | J51: 24.274
E52: Access Band 2 | F52: $/month | G52: 29.084 | H52: 0 | I52: 2.01 | J52: 31.094
E53: Access Band 3 | F53: $/month | G53: 35.904 | H53: 0 | I53: 2.01 | J53: 37.914
E54: Access Band 4 | F54: $/month | G54: 42.724 | H54: 0 | I54: 2.01 | J54: 44.734
E55: Access Band 5 | F55: $/month | G55: 49.544 | H55: 0 | I55: 2.01 | J55: 51.554
E56: Summer Peak Top-up | F56: $/kWh/month | G56: 3.601 | H56: 0 | I56: 0 | J56: 3.601
E57: Volume Flat | F57: Volume Flat | G57: 1.606 | H57: 0 | I57: 1.348 | J57: 2.954
B58: Super Economy | C58: 9000 | D58: 9000/9020/9050/9070 | E58: Volume Flat | F58: c/kWh | G58: 4.648 | H58: 0 | I58: 1.067 | J58: =G58+H58+I58 -> 5.715
B59: Economy | C59: 9100 | D59: 9100/9120/9150/9170 | E59: Volume Flat | F59: c/kWh | G59: 5.896 | H59: 0 | I59: 1.067 | J59: =G59+H59+I59 -> 6.963
B60: Smart Control | C60: 7300 | D60: 7300/7350 | E60: Volume Flat | F60: c/kWh | G60: 2.269 | H60: 0 | I60: 0.472 | J60: =G60+H60+I60 -> 2.741
B61: Unmetered | C61: 9600 | E61: Volume Flat | F61: c/kWh | G61: 6.141 | H61: 0 | I61: 1.134 | J61: =G61+H61+I61 -> 7.275
A62: Notes: 1. All prices exclude GST 2. These tariffs are no longer offered 3. Tariff duplicates in order to implement the various combination of Metering Service Charges.

Sheet Price capped services 2018- 19
A2: 2018-19 Price Capped Services
A4: CATEGORY | B4: SERVICE DESCRIPTION | C4: CHARGE TYPE | D4: PEACE CHARGE CODE | E4: Product Code | F4: PERMUTATIONS | G4: 2018-19 ($/service) excluding GST1 | H4: 2018-19 ($/service) including GST1
A5: Connections
A6: Pre-Connection Services
A7: Connection Applications Services
A8: Application assessment, design review and audit real estate development (sub-division) connection services - resubmission | B8: Design Assessment and Preparation of Offer - Resubmission. | C8: Price Cap | D8: Charged Directly to Customer | G8: 173.88 | H8: =ROUND(G8*1.1,2) -> 191.27
A9: Negotiation services involved in negotiating a connection agreement - simple | B9: Standard jobs for Small Customer Connections and Real Estate Developments (sub-divisions). If service is non-standard, a quoted price may apply. | C9: Price Cap | D9: Charged Directly to Customer | G9: 1623.49 | H9: =ROUND(G9*1.1,2) -> 1785.84
A10: Protection and Power Quality assessment prior to connection - simple | B10: Solar PV 30-150kW | C10: Price Cap | D10: Charged Directly to Customer | G10: 4058.73 | H10: 4464.6
A11: Pre-Connection Consultation Services
A12: Site inspection in order to determine nature of connection | B12: Small or large customer connection. | C12: Price Cap | D12: Charged Directly to Customer | G12: 347.78 | H12: =ROUND(G12*1.1,2) -> 382.56
A13: Provision of site-specific connection information and advice for small or large customer connections. | B13: Protection devices and settings, fault level, network information. | C13: Price Cap | D13: Charged Directly to Customer | G13: 695.56 | H13: 765.12
A14: Connection Services - Large Customer Connections
A15: Customer request a temporary connection for short term supply (includes metered and unmetered) - Simple | B15: Customer requested temporary connection (short term) and recovery of the temporary builders supply. | C15: Price Cap Sch 8 | D15: 120 | E15: NCT1MB | F15: BUSINESS HOURS - NO CT | G15: 1510.56 | H15: =ROUND(G15*1.1,2) -> 1661.62
C16: Price Cap | D16: 124 | E16: NCT1MA | F16: AFTER HOURS - NO CT | G16: 2155.64 | H16: 2371.2
C17: Price Cap | D17: 128 | E17: NCT1MT | F17: ANYTIME - NO CT | G17: 2155.64 | H17: 2371.2
C18: Price Cap | D18: 125 | E18: NCT1MAT | F18: AFTER HOURS - NO CT - TRAFFIC CONTROL | G18: 3289.13 | H18: 3618.04
C19: Price Cap | D19: 129 | E19: NCT1MTT | F19: ANYTIME - NO CT - TRAFFIC CONTROL | G19: 3289.13 | H19: 3618.04
C20: Price Cap Sch 8 | D20: 122 | E20: NCT2MB | F20: BUSINESS HOURS - CT | G20: 2612.01 | H20: 2873.21
C21: Price Cap | D21: 126 | E21: NCT2MA | F21: AFTER HOURS - CT | G21: 3727.46 | H21: 4100.21
C22: Price Cap | D22: 130 | E22: NCT2MT | F22: ANYTIME - CT | G22: 3727.46 | H22: 4100.21
C23: Price Cap | D23: 127 | E23: NCT2MAT | F23: AFTER HOURS - CT - TRAFFIC CONTROL | G23: 4860.95 | H23: 5347.05
C24: Price Cap | D24: 131 | E24: NCT2MTT | F24: ANYTIME - CT - TRAFFIC CONTROL | G24: 4860.95 | H24: 5347.05
B25: Temporary Connection of unmetered equipment to an existing LV supply. | C25: Price Cap Sch 8 | D25: 1400 | E25: TUMS | G25: 277.32 | H25: 305.05
A26: Post-connection Services
A27: Supply Abolishment - Simple | B27: Request to de-energise an unmetered supply point. | C27: Price Cap | D27: 328 | E27: DNUMS | G27: 425.81 | H27: =ROUND(G27*1.1,2) -> 468.39
B28: Retailer requests the Service Provider to abolish supply at a specific connection point (simple). To be used for single dwellings and the community / unit one of multi-unit residential complexes. | C28: Price Cap | D28: 800 | E28: SA1 | F28: BUSINESS HOURS (excl meter removal) | G28: 485.35 | H28: =ROUND(G28*1.1,2) -> 533.89
C29: Price Cap | D29: 809 | E29: SA1BHTC | F29: BUSINESS HOURS + TRAFFIC CONTROL (excl meter removal) | G29: 1618.85 | H29: =ROUND(G29*1.1,2) -> 1780.74
A30: 0 | C30: Price Cap | D30: 810 | E30: SA4 | F30: Initial meter removal BUSINESS HOURS (includes travel) | G30: 196.69 | H30: =ROUND(G30*1.1,2) -> 216.36
C31: Price Cap | D31: 801 | E31: SA1AH | F31: AFTER HOURS (excl meter removal) | G31: 561.36 | H31: 617.5
C32: Price Cap | D32: 805 | E32: SA1AHT | F32: AFTER HOURS + TRAFFIC CONTROL (excl meter removal) | G32: 1694.85 | H32: 1864.34
C33: Price Cap | D33: 811 | E33: SA4AH | F33: Initial meter removal AFTER HOURS (includes travel) | G33: 280.69 | H33: 308.76
C34: Price Cap | D34: 806 | E34: SA1AT | F34: ANYTIME (excl meter removal) | G34: 561.36 | H34: =ROUND(G34*1.1,2) -> 617.5
C35: Price Cap | D35: 807 | E35: SA1ATT | F35: ANYTIME + TRAFFIC CONTROL (excl meter removal) | G35: 1694.85 | H35: =ROUND(G35*1.1,2) -> 1864.34
A36: 0 | C36: Price Cap | D36: 813 | E36: SA4AT | F36: Initial meter removal ANYTIME (includes travel) | G36: 280.69 | H36: 308.76
A37: 0 | B37: Retailer requests the Service Provider to abolish supply at a specific connection point (simple). To be used for multi-unit residential complexes for all units after the community / unit one - meter removal (charge per meter) | C37: Price Cap | D37: 803 | E37: SA3 | F37: BUSINESS HOURS (no travel) | G37: 128.5 | H37: 141.35
A38: 0 | B38: 0 | C38: Price Cap | D38: 804 | E38: SA3AH | F38: AFTER HOURS (no travel) | G38: 183.43 | H38: 201.77
A39: 0 | B39: 0 | C39: Price Cap | D39: 808 | E39: SA3AT | F39: ANYTIME (no travel) | G39: 183.43 | H39: 201.77
A40: Rearrange connection assets at customer's request - simple (upgrade from overhead to underground where main connection point is in existance) | B40: Recovery of the overhead service and connection of the consumer mains to the pre-existing pillar for a customer requested conversion of existing overhead service to underground service. | C40: Price Cap | D40: 1004 | E40: MSOHtoUG | F40: BUSINESS HOURS | G40: 259.63 | H40: 285.59
A41: 0 | B41: 0 | C41: Price Cap | D41: 1019 | E41: MSOHtoUGA | F41: AFTER HOURS | G41: 370.5 | H41: 407.55
A42: 0 | B42: 0 | C42: Price Cap | D42: 1035 | E42: MSOHtoUGT | F42: ANYTIME | G42: 370.5 | H42: 407.55
A43: Overhead Service Line Replacement at customers request (no material change to load) | B43: Customer requests their existing overhead service to be replaced or relocated, e.g.as a result of point of attachment relocation. No material change to load. | C43: Price Cap | D43: 920 | E43: MSOR1P2 | F43: Single Phase - BUSINESS HOURS | G43: 659.05 | H43: 724.96
A44: 0 | B44: 0 | C44: Price Cap | D44: 921 | E44: MSOR1P2A | F44: Single Phase - AFTER HOURS | G44: 854.95 | H44: 940.45
A45: 0 | B45: 0 | C45: Price Cap | D45: 923 | E45: MSOR1P2T | F45: Single Phase - ANYTIME | G45: 854.95 | H45: 940.45
A46: 0 | B46: 0 | C46: Price Cap | D46: 559 | E46: MSOR1PHTCB | F46: Single Phase - BUSINESS HOURS + TRAFFIC CONTROL | G46: 1792.55 | H46: 1971.81
A47: 0 | B47: 0 | C47: Price Cap | D47: 922 | E47: MSOR1P2AT | F47: Single Phase - AFTER HOURS + TRAFFIC CONTROL | G47: 1988.45 | H47: 2187.3
A48: 0 | B48: 0 | C48: Price Cap | D48: 925 | E48: MSOR1P2TT | F48: Single Phase - ANYTIME + TRAFFIC CONTROL | G48: 1988.45 | H48: 2187.3
A49: 0 | B49: 0 | C49: Price Cap | D49: 924 | E49: MSOR3P2 | F49: Multi Phase - BUSINESS HOURS | G49: 925.5 | H49: 1018.05
A50: 0 | B50: 0 | C50: Price Cap | D50: 927 | E50: MSOR3P2A | F50: Multi Phase - AFTER HOURS | G50: 1172.82 | H50: 1290.1
A51: 0 | B51: 0 | C51: Price Cap | D51: 931 | E51: MSOR3P2T | F51: Multi Phase - ANYTIME | G51: 1172.82 | H51: 1290.1
A52: 0 | B52: 0 | C52: Price Cap | D52: 560 | E52: MSORMPHTCB | F52: Multi Phase - BUSINESS HOURS + TRAFFIC CONTROL | G52: 2058.99 | H52: 2264.89
A53: 0 | B53: 0 | C53: Price Cap | D53: 929 | E53: MSOR3P2AT | F53: Multi Phase - AFTER HOURS + TRAFFIC CONTROL | G53: 2306.32 | H53: 2536.95
A54: 0 | B54: 0 | C54: Price Cap | D54: 933 | E54: MSOR3P2TT | F54: Multi Phase - ANYTIME + TRAFFIC CONTROL | G54: 2306.32 | H54: 2536.95
A55: Auditing services – auditing/re-inspection of connection assets after energisation to network - simple | B55: Auditing / re-inspection of connection assets after energisation - real estate development (sub-division) Number of new, modified or recovered sites (i.e. stations numbers excluding street light pits and conduits). | C55: Price Cap | D55: Charged Directly to Customer | F55: 0-6 | G55: 476.8 | H55: 524.48
A56: 0 | B56: 0 | C56: Price Cap | D56: Charged Directly to Customer | F56: 7-30 | G56: 762.88 | H56: 839.17
A57: 0 | B57: 0 | C57: Price Cap | D57: Charged Directly to Customer | F57: 31-60 | G57: 912.72 | H57: 1003.99
A58: 0 | B58: 0 | C58: Price Cap | D58: Charged Directly to Customer | F58: 61+ | G58: 1017.17 | H58: 1118.89
A59: Temporary disconnections and reconnections (which may involve a line drop) - Low Voltage | B59: Temporary LV service disconnection / reconnection (No dismantling). | C59: Price Cap | D59: 902 | E59: MSDNNDB | F59: No Dismantling - BUSINESS HOURS | G59: 372.4 | H59: 409.64
A60: 0 | B60: 0 | C60: Price Cap | D60: 908 | E60: MSDNNDA | F60: No Dismantling - AFTER HOURS | G60: 531.43 | H60: 584.57
A61: 0 | B61: 0 | C61: Price Cap | D61: 914 | E61: MSDNNDT | F61: No Dismantling - ANYTIME | G61: 531.43 | H61: 584.57
A62: 0 | B62: Temporary LV Service Disconnection/Reconnection (Dismantling - drop and re-erect service) | C62: Price Cap | D62: 904 | E62: MSDNPDB | F62: Dismantling - BUSINESS HOURS | G62: 608.42 | H62: 669.26
A63: 0 | B63: 0 | C63: Price Cap | D63: 910 | E63: MSDNPDA | F63: Dismantling - AFTER HOURS | G63: 868.24 | H63: 955.06
A64: 0 | B64: 0 | C64: Price Cap | D64: 915 | E64: MSDNPDT | F64: Dismantling - ANYTIME | G64: 868.24 | H64: 955.06
A65: Customer initiated supply enhancement | B65: Overhead Service Upgrade to Single Phase. | C65: Price Cap | D65: 1008 | E65: MSOU1P2 | F65: Single Phase Upgrade - BUSINESS HOURS | G65: 1087.95 | H65: 1196.75
C66: Price Cap | D66: 1009 | E66: MSOU1P1 | F66: Single Phase Upgrade (Fuse Only) - BUSINESS HOURS | G66: 188.81 | H66: 207.69
B67: 0 | C67: Price Cap | D67: 1053 | E67: MSU1PHAH | F67: Single Phase Upgrade - AFTER HOURS | G67: 1414.97 | H67: 1556.47
C68: Price Cap | D68: 1056 | E68: MSOU1P1AH | F68: Single Phase Upgrade (Fuse Only) - AFTER HOURS | G68: 269.45 | H68: 296.4
B69: 0 | C69: Price Cap | D69: 1055 | E69: MSU1PHTCBH | F69: Single Phase Upgrade - BUSINESS HOURS + TRAFFIC CONTROL | G69: 2221.46 | H69: 2443.61
B70: 0 | C70: Price Cap | D70: 1054 | E70: MSU1PHTCAH | F70: Single Phase Upgrade - AFTER HOURS + TRAFFIC CONTROL | G70: 2548.46 | H70: 2803.31
B71: Overhead Service Upgrade to Multiphase. | C71: Price Cap | D71: 1014 | E71: MSOU3P1 | F71: Multi Phase Upgrade - BUSINESS HOURS | G71: 1226.11 | H71: 1348.72 | I71: includes upgrading from single phase or multi phase to muli phase
B72: 0 | C72: Price Cap | D72: 1000 | E72: MSUMPHAH | F72: Multi Phase Upgrade-AFTER HOURS | G72: 1646.08 | H72: 1810.69 | I72: includes upgrading from single phase or multi phase to muli phase
B73: 0 | C73: Price Cap | D73: 1001 | E73: MSUMPHTC | F73: Multi Phase Upgrade- BUSINESS HOURS - TRAFFIC CONTROL | G73: 2359.61 | H73: 2595.57 | I73: includes upgrading from single phase or multi phase to muli phase
B74: 0 | C74: Price Cap | D74: 1052 | E74: MSUMPHTCAH | F74: Multi Phase Upgrade - AFTER HOURS - TRAFFIC CONTROL | G74: 2779.57 | H74: 3057.53 | I74: includes upgrading from single phase or multi phase to muli phase
B75: Underground Service Upgrade. | C75: Price Cap | D75: 1060 | E75: MSUU1PHBH | F75: BUSINESS HOURS - SINGLE PHASE | G75: 133.75 | H75: 147.13
C76: Price Cap | D76: 1061 | E76: MSUU1PHAH | F76: AFTER HOURS - SINGLE PHASE | G76: 190.86 | H76: 209.95
C77: Price Cap | D77: 1042 | E77: MSUU3P | F77: BUSINESS HOURS - TO MULTIPHASE | G77: 133.75 | H77: 147.13
C78: Price Cap | D78: 1062 | E78: MSUUMPHAH | F78: AFTER HOURS - TO MULTIPHASE | G78: 190.86 | H78: 209.95
C79: Price Cap | D79: 1063 | E79: MSUUCTBH | F79: BUSINESS HOURS - TO MULTIPHASE CT Metering | G79: 608.42 | H79: 669.26
C80: Price Cap | D80: 1064 | E80: MSUUCTAH | F80: AFTER HOURS - TO MULTIPHASE CT Metering | G80: 868.24 | H80: 955.06
A81: Customer consultation or appointment. | B81: A visit to the customers premise to advise on electrical supply matters, could be for various reasons. | C81: Price Cap | D81: 952 | E81: MSAPWR | F81: Complex (customer requested) | G81: 236.03 | H81: 259.63
C82: Price Cap | D82: 1074 | E82: MCMSAPWR | F82: Complex (Metering Coordinator/provider requested) | G82: 236.03 | H82: 259.63
C83: Price Cap | D83: 953 | E83: MSAPWRS | F83: Simple (customer requested) | G83: 107.52 | H83: 118.27
A84: 0 | B84: 0 | C84: Price Cap | D84: 1075 | E84: MCMSAPWRS | F84: Simple (Metering Coordinator/provider requested) | G84: 107.52 | H84: 118.27
A85: Customer requested works to allow customer or contractor to work close | B85: Appointment negotiation and power isolation to allow third party to install contestable metering | C85: Price Cap | D85: 1065 | E85: SSWTI1M1V | F85: 1 man crew - initial visit | G85: 158.53 | H85: 174.38
C86: Price Cap | D86: 1066 | E86: SSWTI1M2V | F86: 1 man crew - subsequent visit | G86: 133.75 | H86: 147.13
C87: Price Cap | D87: 1067 | E87: SSWTI2M1V | F87: 2 man crew - initial visit | G87: 292.29 | H87: 321.52
A88: 0 | B88: 0 | C88: Price Cap | D88: 1068 | E88: SSWTI2M2V | F88: 2 man crew - subsequent visit | G88: 267.5 | H88: 294.25
A89: De-energisation | B89: Retailer requested de-energisation of the customer's premises where the de-energisation can be performed at the premise ie by a method other than main switch seal (eg pole, pillar or meter isolation link). | C89: Price Cap Sch 8 | D89: 300 | E89: DNSD1MB | F89: NO CT | G89: 65.73 | H89: 72.3
A90: 0 | B90: 0 | C90: Price Cap Sch 8 | D90: 302 | E90: DNSD2MB | F90: CT | G90: 322.89 | H90: 355.18
A91: 0 | B91: 0 | C91: Price Cap Sch 8 | D91: 304 | E91: DN$1MB | F91: NON PAYMENT - NO CT | G91: 65.73 | H91: 72.3
A92: 0 | B92: 0 | C92: Price Cap Sch 8 | D92: 306 | E92: DN$2MB | F92: NON PAYMENT - CT | G92: 327.42 | H92: 360.16
A93: 0 | B93: Retailer requested de-energisation (MSS). | C93: Price Cap Sch 8 | D93: 320 | E93: DNS | F93: REASON OTHER THAN NON PAYMENT | G93: 21.53 | H93: 23.68
A94: 0 | B94: 0 | C94: Price Cap Sch 8 | D94: 324 | E94: DNS$1MB | F94: NON PAYMENT | G94: 21.53 | H94: 23.68
A95: Re-energisation | B95: Retailer requests a re-energisation of the customer's premises where the customer has not paid their electricity account. No visual required. | C95: Price Cap Sch 8 | D95: 200 | E95: RN$1MB | F95: BUSINESS HOURS - NO CT | G95: 50.21 | H95: 55.23
A96: 0 | B96: 0 | C96: Price Cap Sch 8 | D96: 204 | E96: RN$1MA | F96: AFTER HOURS - NO CT | G96: 71.2 | H96: 78.32
A97: 0 | B97: 0 | C97: Price Cap Sch 8 | D97: 208 | E97: RN$1MT | F97: ANYTIME - NO CT | G97: 71.2 | H97: 78.32
A98: 0 | B98: 0 | C98: Price Cap Sch 8 | D98: 202 | E98: RN$2MB | F98: BUSINESS HOURS - CT | G98: 50.21 | H98: 55.23
A99: 0 | B99: 0 | C99: Price Cap Sch 8 | D99: 206 | E99: RN$2MA | F99: AFTER HOURS - CT | G99: 71.2 | H99: 78.32
A100: 0 | B100: 0 | C100: Price Cap Sch 8 | D100: 210 | E100: RN$2MT | F100: ANYTIME - CT | G100: 71.2 | H100: =ROUND(G100*1.1,2) -> 78.32
A101: 0 | B101: Retailer requests a re-energisation for the customer's premises following a main switch seal (no visual required). | C101: Price Cap Sch 8 | D101: 406 | E101: RNMSS | F101: BUSINESS HOURS | G101: 12.12 | H101: 13.33
A102: 0 | B102: 0 | C102: Price Cap Sch 8 | D102: 408 | E102: RNMSSA | F102: AFTER HOURS | G102: 81.01 | H102: 89.11
A103: 0 | B103: 0 | C103: Price Cap Sch 8 | D103: 410 | E103: RNMSST | F103: ANYTIME | G103: 73.4 | H103: 80.74
A104: 0 | B104: 0 | C104: Price Cap Sch 8 | D104: 412 | E104: RNS$1MB | F104: BUSINESS HOURS - NON PAYMENT | G104: 49.68 | H104: 54.65
A105: 0 | B105: 0 | C105: Price Cap Sch 8 | D105: 416 | E105: RNS$1MA | F105: AFTER HOURS - NON PAYMENT | G105: 81.01 | H105: 89.11
A106: 0 | B106: 0 | C106: Price Cap Sch 8 | D106: 414 | E106: RNS$1MT | F106: ANYTIME - NON PAYMENT | G106: 73.4 | H106: 80.74
A107: 0 | B107: Retailer or metering coordinator/provider requests a visual examination upon re-energisation (physical or remote performed by either party) of the customer’s premises. | C107: Price Cap Sch 8 | D107: 224 | E107: RNV1MB | F107: BUSINESS HOURS - NO CT | G107: 115.34 | H107: 126.87
A108: 0 | B108: 0 | C108: Price Cap Sch 8 | D108: 228 | E108: RNV1MA | F108: AFTER HOURS - NO CT | G108: 164.38 | H108: 180.82
A109: 0 | B109: 0 | C109: Price Cap Sch 8 | D109: 232 | E109: RNV1MT | F109: ANYTIME - NO CT | G109: 163.99 | H109: 180.39
A110: 0 | B110: 0 | C110: Price Cap Sch 8 | D110: 226 | E110: RNV2MB | F110: BUSINESS HOURS - CT | G110: 295.81 | H110: 325.39
A111: 0 | B111: 0 | C111: Price Cap Sch 8 | D111: 230 | E111: RNV2MA | F111: AFTER HOURS - CT | G111: 408.8 | H111: 449.68
A112: 0 | B112: 0 | C112: Price Cap Sch 8 | D112: 234 | E112: RNV2MT | F112: ANYTIME - CT | G112: 446.88 | H112: 491.57
A113: 0 | B113: Retailer or metering coordinator/provider requests a visual examination upon re-energisation (physical or remote performed by either party) of the customer’s premises where the customer has not paid their electricity account. NMI de-energised > 30 days. | C113: Price Cap Sch 8 | D113: 212 | E113: RN$V1MB | F113: BUSINESS HOURS - NO CT | G113: 115.34 | H113: 126.87
A114: 0 | B114: 0 | C114: Price Cap Sch 8 | D114: 216 | E114: RN$V1MA | F114: AFTER HOURS - NO CT | G114: 164.38 | H114: 180.82
A115: 0 | B115: 0 | C115: Price Cap Sch 8 | D115: 220 | E115: RN$V1MT | F115: ANYTIME - NO CT | G115: 163.99 | H115: 180.39
A116: 0 | B116: 0 | C116: Price Cap Sch 8 | D116: 214 | E116: RN$V2MB | F116: BUSINESS HOURS - CT | G116: 295.81 | H116: 325.39
A117: 0 | B117: 0 | C117: Price Cap Sch 8 | D117: 218 | E117: RN$V2MA | F117: AFTER HOURS - CT | G117: 408.8 | H117: 449.68
A118: 0 | B118: 0 | C118: Price Cap Sch 8 | D118: 222 | E118: RN$V2MT | F118: ANYTIME - CT | G118: 446.88 | H118: 491.57
A119: Readings provided for an active site | B119: Reading provided for an active site. | C119: Price Cap | D119: 238 | E119: RNNR | F119: RETAIL REQUESTED FIELDWORK | G119: 10.25 | H119: 11.28
C120: Price Cap | D120: 240 | E120: RNRM | F120: RETROSPECTIVE MOVE IN READ | G120: 10.25 | H120: 11.28
A121: Attending loss of supply (customer at fault) | B121: EGX attending LV customers trouble call and found fault in LV customers installation/Non Energex Metering (includes tripped safety switch, internal fault, customers overload). | C121: Price Cap | D121: 1500 | E121: LOS | F121: BUSINESS HOURS - Customer | G121: 236.03 | H121: 259.63
C122: Price Cap | D122: 1501 | E122: LOSMC | F122: BUSINESS HOURS - Metering Provider | G122: 236.03 | H122: 259.63
A123: 0 | B123: 0 | C123: Price Cap | D123: 1602 | E123: LOST | F123: AFTER HOURS - Customer | G123: 336.81 | H123: 370.49
C124: Price Cap | D124: 1603 | E124: LOSTMC | F124: AFTER HOURS - Metering Provider | G124: 336.81 | H124: 370.49
C125: Price Cap | D125: 1600 | E125: LOSA | F125: ANYTIME - Customer | G125: 336.81 | H125: 370.49
A126: 0 | B126: 0 | C126: Price Cap | D126: 1601 | E126: LOSAMC | F126: ANYTIME - Metering Provider | G126: 336.81 | H126: 370.49
A127: Accreditation / Certification
A128: Accreditation of Design Consultants Applicant requests to obtain Energex accreditation to provide design services for real estate development (sub-division), Rate 2 public lighting, LCC & distribution works that are reticulated with Energex network (design accreditation) | B128: DESKTOP MANAGEMENT SYSTEM EVALUATION. | C128: Price Cap | D128: Charged Directly to Customer | F128: ISO9001 ACCREDITATION | G128: 10982.59 | H128: =ROUND(G128*1.1,2) -> 12080.85
A129: 0 | B129: 0 | C129: Price Cap | D129: Charged Directly to Customer | F129: NO ISO9001 ACCREDITATION | G129: 12798.96 | H129: 14078.86
A130: 0 | B130: 0 | C130: Price Cap | D130: Charged Directly to Customer | F130: DESIGN SERVICE (RATE 2) ACCREDITATION | G130: 7504.81 | H130: 8255.29
A131: 0 | B131: ONSITE MANAGEMENT SYSTEM EVALUATION (irrespective of prior accreditations). | C131: Price Cap | D131: Charged Directly to Customer | G131: 726.56 | H131: 799.22
A132: 0 | B132: CAPABILITY EVALUATION (irrespective of prior accreditations). | C132: Price Cap | D132: Charged Directly to Customer | G132: 695.56 | H132: 765.12
A133: Accreditation of Alternative Service Providers Applicant requests to obtain Energex Accreditation to provide construction services for real estate development (sub-division) works that are reticulated with Energex network (Construction Accreditation) | B133: DESKTOP MANAGEMENT SYSTEM EVALUATION | C133: Price Cap | D133: Charged Directly to Customer | F133: ISO9001/AS4801/ISO14001 ACCREDITATION | G133: 5356.15 | H133: 5891.77
A134: 0 | B134: 0 | C134: Price Cap | D134: Charged Directly to Customer | F134: NO ISO9001/AS4801/ISO14001 ACCREDITATION | G134: 10047.73 | H134: 11052.5
A135: 0 | B135: 0 | C135: Price Cap | D135: Charged Directly to Customer | F135: ADDITIONAL EGX ACCREDITATIONS WITH OR WITHOUT ISO9001/AS4801/ISO14001 | G135: 5356.15 | H135: 5891.77
A136: 0 | B136: ONSITE MANAGEMENT SYSTEM EVALUATION (irrespective of prior accreditations). | C136: Price Cap | D136: Charged Directly to Customer | G136: 1453.1 | H136: 1598.41
A137: 0 | B137: CAPABILITY EVALUATION (irrespective of prior accreditations). | C137: Price Cap | D137: Charged Directly to Customer | G137: 1422.11 | H137: 1564.32
A138: Management System Re-Evaluation | B138: Quality assessment (QA) process: This is conducted on request form existing service providers and design consultants with the intent to improve their management system score. | C138: Price Cap | D138: Charged Directly to Customer | G138: 7265.52 | H138: 7992.07
A139: Shared Assets Authority | B139: High Level quality assessment (QA) and capability process: This is conducted to ensure the applicant has adequate Safety and QA documentation to meet Legislative and Energex WCS Requirements. Also involves a capability assessment of the applicant's ability to conduct the work. | C139: Price Cap | D139: Charged Directly to Customer | G139: 5449.14 | H139: 5994.05
A140: Auxiliary Metering Servies
A141: Meter Installations
A142: Meter Maintenance | B142: Remove Meter - After hours provision of service (incremental costs only). | C142: Price Cap | D142: 536 | E142: AARM1AH | F142: AFTER HOURS METER REMOVAL - NO CT | G142: 55.73 | H142: =ROUND(G142*1.1,2) -> 61.3
A143: 0 | B143: 0 | C143: Price Cap | D143: 537 | E143: AARMCTAH | F143: AFTER HOURS METER REMOVAL - CT | G143: 177.69 | H143: 195.46
A144: 0 | B144: Customer requested meter accuracy testing of type 5-6 meter (physically test meter). | C144: Price Cap Sch 8 | D144: 704 | E144: MIMT1MB | F144: BUSINESS HOURS - NO CT | G144: 391.15 | H144: 430.27
A145: 0 | B145: 0 | C145: Price Cap Sch 8 | D145: 706 | E145: MIMT2MB | F145: BUSINESS HOURS - CT | G145: 815.6 | H145: 897.16
A146: 0 | B146: Customer requested meter inspection & investigation (no physical testing of meter) no fault in meter found. | C146: Price Cap | D146: 957 | E146: MSINSS | F146: BUSINESS HOURS - NO CT | G146: 96.06 | H146: 105.67
A147: 0 | B147: 0 | C147: Price Cap | D147: 965 | E147: MCINSSA | F147: AFTER HOURS - NO CT | G147: 173.32 | H147: 190.65
A148: 0 | B148: 0 | C148: Price Cap | D148: 967 | E148: MCINSST | F148: ANYTIME - NO CT | G148: 173.32 | H148: 190.65
A149: 0 | B149: 0 | C149: Price Cap | D149: 959 | E149: MSINSC | F149: BUSINESS HOURS - CT | G149: 357.08 | H149: 392.79
A150: 0 | B150: 0 | C150: Price Cap | D150: 969 | E150: MCINSCA | F150: AFTER HOURS - CT | G150: 509.57 | H150: 560.53
A151: 0 | B151: 0 | C151: Price Cap | D151: 971 | E151: MCINSCT | F151: ANYTIME - CT | G151: 509.57 | H151: 560.53
A152: 0 | B152: Customer Requested Meter Reconfiguration. | C152: Price Cap | D152: 1200 | E152: MRCL1M | F152: CONTROLLED LOAD - NO CT | G152: 97.97 | H152: 107.77
A153: 0 | B153: 0 | C153: Price Cap | D153: 1202 | E153: MRCL2M | F153: CONTROLLED LOAD - CT | G153: 451.07 | H153: 496.18
A154: 0 | B154: 0 | C154: Price Cap | D154: 1204 | E154: MRCT1M | F154: BUSINESS HOURS - CHANGE TARIFF - NO CT | G154: 97.97 | H154: 107.77
A155: 0 | B155: 0 | C155: Price Cap | D155: 1212 | E155: MRCT1MA | F155: AFTER HOURS - ONE TARIFF TO ANOTHER - NO CT | G155: 115.81 | H155: 127.39
A156: 0 | B156: 0 | C156: Price Cap | D156: 1220 | E156: MRCT1MT | F156: ANYTIME - ONE TARIFF TO ANOTHER - NO CT | G156: 115.81 | H156: =ROUND(G156*1.1,2) -> 127.39
A157: 0 | B157: 0 | C157: Price Cap | D157: 1206 | E157: MRCT2M | F157: BUSINESS HOURS - CHANGE TARIFF - CT | G157: 451.07 | H157: 496.18
A158: 0 | B158: 0 | C158: Price Cap | D158: 1214 | E158: MRCT2MA | F158: AFTER HOURS - ONE TARIFF TO ANOTHER - CT | G158: 643.7 | H158: 708.07
A159: 0 | B159: 0 | C159: Price Cap | D159: 1222 | E159: MRCT2MT | F159: ANYTIME - MTr RECONFIG CHNG CTRL LOAD - CT | G159: 643.7 | H159: 708.07
A160: 0 | B160: 0 | C160: Price Cap | D160: 1201 | E160: MRRT1M | F160: Time of Use TRANSFER - NO CT | G160: 149.48 | H160: 164.43
A161: 0 | B161: 0 | C161: Price Cap | D161: 1203 | E161: MRRT2M | F161: Time of Use TRANSFER - CT | G161: 498.28 | H161: 548.11
A162: 0 | B162: 0 | C162: Price Cap | D162: 1205 | E162: MRRV1M | F162: Time of Use REVERSION | G162: 97.97 | H162: 107.77
A163: 0 | B163: Change Timeswitch. | C163: Price Cap | D163: 1208 | E163: MRCTS1M | F163: BUSINESS HOURS - NO CT | G163: 131.13 | H163: 144.24
A164: 0 | B164: 0 | C164: Price Cap | D164: 1210 | E164: MRCTS2M | F164: BUSINESS HOURS - CT | G164: 414.36 | H164: 455.8
B165: Integrity verification as a result of a meter alteration – meter is being relocated or meter wiring altered and requires DNSP to visit site to verify the integrity of the metering equipment (Move Meter). | C165: Price Cap | D165: 512 | E165: AAMM1M | F165: BUSINESS HOURS - NO CT | G165: 137.01 | H165: 150.71
B166: 0 | C166: Price Cap | D166: 513 | E166: AAMM1MAH | F166: AFTER HOURS - NO CT | G166: 195.94 | H166: 215.53
B167: 0 | C167: Price Cap | D167: 517 | E167: AAMM1MAT | F167: ANYTIME - NO CT | G167: 195.94 | H167: 215.53
B168: 0 | C168: Price Cap | D168: 514 | E168: AAMM2M | F168: BUSINESS HOURS - CT | G168: 849.05 | H168: 933.96
B169: 0 | C169: Price Cap | D169: 515 | E169: AAMM2MAH | F169: AFTER HOURS - CT | G169: 1211.63 | H169: 1332.79
B170: 0 | C170: Price Cap | D170: 519 | E170: AAMM2MAT | F170: ANYTIME - CT | G170: 1211.63 | H170: 1332.79
A171: 0 | B171: Integrity verification as a result of a meter alteration – meter is being relocated or meter wiring altered and requires DNSP to visit site to verify the integrity of the metering equipment (Move Meter). | C171: Price Cap | D171: TBA | E171: TBA | F171: BUSINESS HOURS - NO CT (no travel) | G171: 113.34 | H171: 124.67
A172: 0 | B172: 0 | C172: Price Cap | D172: TBA | E172: TBA | F172: AFTER HOURS - NO CT (no travel) | G172: 161.74 | H172: 177.91
A173: 0 | B173: 0 | C173: Price Cap | D173: TBA | E173: TBA | F173: ANYTIME - NO CT (no travel) | G173: 161.74 | H173: 177.91
A174: 0 | B174: 0 | C174: Price Cap | D174: TBA | E174: TBA | F174: BUSINESS HOURS - CT (no travel) | G174: 712.68 | H174: 783.95
A175: 0 | B175: 0 | C175: Price Cap | D175: TBA | E175: TBA | F175: AFTER HOURS - CT (no travel) | G175: 1017.02 | H175: 1118.72
A176: 0 | B176: 0 | C176: Price Cap | D176: TBA | E176: TBA | F176: ANYTIME - CT (no travel) | G176: 1017.02 | H176: 1118.72
A177: Meter Reading | B177: Check Read | C177: Price Cap Sch 8 | D177: 400 | E177: SRCR | G177: 8.17 | H177: 8.99
A178: 0 | B178: Final Read | C178: Price Cap Sch 8 | D178: 402 | E178: SRFR | G178: 8.17 | H178: 8.99
B179: Transfer Read | C179: Price Cap Sch 8 | D179: 404 | E179: SRTR | G179: 8.17 | H179: =ROUND(G179*1.1,2) -> 8.99
A180: 0 | B180: Estimated Read | C180: Price Cap Sch 8 | G180: 8.27
A181: Type 5-7 non standard metering data services | B181: A request to conduct a site review of the state of the customer’s metering installation(s) (no physical meter test), i.e. multiple premises. Includes provision of meter data above the minimum requirements and meter inspection to check a reported or suspected fault. Does not include provision of any hardware. | C181: Price Cap | D181: 955 | E181: MSINS | F181: BUSINESS HOURS - FIRST UNIT | G181: 136.91 | H181: 150.6
A182: 0 | B182: 0 | C182: Price Cap | D182: 961 | E182: MSINSA | F182: AFTER HOURS - FIRST UNIT | G182: 390.74 | H182: 429.81
D183: 963 | E183: MSINST | F183: ANYTIME - FIRST UNIT | G183: 390.74 | H183: 429.81
F184: BUSINESS HOURS - ADDITIONAL UNITS | G184: 68.73 | H184: 429.81
F185: AFTER HOURS - ADDITIONAL UNITS | G185: 196.15 | H185: 429.81
A186: 0 | B186: 0 | C186: Price Cap | F186: ANYTIME - ADDITIONAL UNITS | G186: 196.15 | H186: 429.81
A187: CT Metering | B187: Provision, installation, testing and maintenance of instrument transformers for metering purposes. | C187: Price Cap | D187: 539 | E187: CTP&T | G187: 1016.58 | H187: 1118.24
A188: 0 | B188: Testing and maintenance of instrument transformers for metering purposes. | C188: Price Cap | D188: 540 | E188: CTT&MT | G188: 186.2 | H188: 204.82
A189: Ancillary Network Services
A190: Other Recoverable Works
A191: Customer consultation or appointment. | B191: A visit to the customers premise to advise on electrical supply matters, could be for various reasons. | C191: Price Cap | D191: 952 | E191: MSAPWR | F191: Complex (customer requested) | G191: 236.03 | H191: =ROUND(G191*1.1,2) -> 259.63
C192: Price Cap | D192: 1074 | E192: MCMSAPWR | F192: Complex (third party requested) | G192: 236.03 | H192: 259.63
C193: Price Cap | D193: 953 | E193: MSAPWRS | F193: Simple (customer requested) | G193: 107.52 | H193: 115.18
C194: Price Cap | D194: 1075 | E194: MCMSAPWRS | F194: Simple (third party requested) | G194: 107.52 | H194: 118.27
A195: Attendance at customers premises to perform a statutory right where access is prevented | B195: Energex attends a site at the customers request and is unable to perform job due to customers fault / fault of a third party. | C195: Price Cap | D195: 1044 | E195: MSWTV | F195: BUSINESS HOURS - TECHNICAL (customer at fault) | G195: 94.41 | H195: 103.85
C196: Price Cap | D196: 1069 | E196: MCMSWTV | F196: BUSINESS HOURS - TECHNICAL (third party at fault) | G196: 94.41 | H196: 103.85
A197: 0 | B197: 0 | C197: Price Cap | D197: 1050 | E197: MSWTV2CR | F197: BUSINESS HOURS - TECHNICAL (2 crew) (customer at fault) | G197: 188.81 | H197: 207.69
C198: Price Cap | D198: 1072 | E198: MCMSWTV2CR | F198: BUSINESS HOURS - TECHNICAL (2 crew) (third party at fault) | G198: 188.81 | H198: 207.69
C199: Price Cap | D199: 1045 | E199: MSWTVA | F199: AFTER HOURS - TECHNICAL (customer at fault) | G199: 134.73 | H199: 148.2
C200: Price Cap | D200: 1070 | E200: MCMSWTVA | F200: AFTER HOURS - TECHNICAL (third party at fault) | G200: 134.73 | H200: 148.2
A201: 0 | B201: 0 | C201: Price Cap | D201: 1051 | E201: MSWTV2CRAH | F201: AFTER HOURS - TECHNICAL (2 crew) (customer at fault) | G201: 269.45 | H201: 296.4
C202: Price Cap | D202: 1073 | E202: MCMS2MWTVA | F202: AFTER HOURS - TECHNICAL (2 crew) (third party at fault) | G202: 269.45 | H202: 296.4
... 15 more rows

Sheet Metering Service Charge 2018-19
A1: 2018-19 Metering Service Charge
E2: Daily (cents) | F2: 2018-19
D3: Primary | E3: Non Capital | F3: 2.314
E4: Capital | F4: 7.167
D5: Load Control | E5: Non Capital | F5: 0.694
E6: Capital | F6: 2.15
D7: Solar PV | E7: Non Capital | F7: 1.619
E8: Capital | F8: 5.017
A10: Tariff Class | B10: Tariff Description | C10: SCS Network Tariff Code | D10: Billing Code for (SCS tariff plus applicable metering service charge) | E10: Metering Service3, 4 Charge applicable | F10: Metering Service Charge
F11: (c/day)
A14: SAC | B14: Large | C14: 8100 | D14: 8100 | E14: N/A
B15: Small | C15: 8300 | D15: 8300 | E15: N/A
B16: Business Flat | C16: 8500 | D16: 8500 | E16: Capital and Non-capital | F16: 9.481
C17: 8500 | D17: 8520 | E17: Non-capital only | F17: 2.314
C18: 8500 | D18: 8550 | E18: N/A5
C19: 8500 | D19: 8570 | E19: Capital only | F19: 7.167
B20: Business ToU | C20: 8800 | D20: 8800 | E20: Capital and Non-capital | F20: 9.481
C21: 8800 | D21: 8820 | E21: Non-capital only | F21: 2.314
C22: 8800 | D22: 8850 | E22: N/A5
C23: 8800 | D23: 8870 | E23: Capital only | F23: 7.167
B24: Business Demand | C24: 71002 | D24: 7100 | E24: Capital only | F24: 7.167
C25: 71002 | D25: 7150 | E25: N/A5
B26: Residential Flat | C26: 8400 | D26: 8400 | E26: Capital and Non-capital | F26: 9.481
C27: 8400 | D27: 8420 | E27: Non-capital only | F27: 2.314
C28: 8400 | D28: 8450 | E28: N/A5
C29: 8400 | D29: 8470 | E29: Capital only | F29: 7.167
B30: Residential ToU | C30: 8900 | D30: 8900 | E30: Capital and Non-capital | F30: 9.481
C31: 8900 | D31: 8920 | E31: Non-capital only | F31: 2.314
C32: 8900 | D32: 8950 | E32: N/A5
C33: 8900 | D33: 8970 | E33: Capital only | F33: 7.167
B34: Residential Demand | C34: 70002 | D34: 7000 | E34: Capital only | F34: 7.167
C35: 70002 | D35: 7050 | E35: N/A5
B36: Super Economy | C36: 9000 | D36: 9000 | E36: Capital and Non-capital | F36: 2.844
C37: 9000 | D37: 9020 | E37: Non-capital only | F37: 0.694
C38: 9000 | D38: 9050 | E38: N/A5
C39: 9000 | D39: 9070 | E39: Capital only | F39: 2.15
B40: Economy | C40: 9100 | D40: 9100 | E40: Capital and Non-capital | F40: 2.844
C41: 9100 | D41: 9120 | E41: Non-capital only | F41: 0.694
C42: 9100 | D42: 9150 | E42: N/A5
C43: 9100 | D43: 9170 | E43: Capital only | F43: 2.15
B44: Smart Control | C44: 73002 | D44: 7300 | E44: Capital only | F44: 2.15
C45: 73002 | D45: 7350 | E45: N/A5
B46: Unmetered | C46: 9600 | D46: 9600 | E46: N/A
A47: PV | B47: Photovoltaic (net) | C47: 7500 | D47: 7500 | E47: Capital & Non-capital | F47: 6.636
C48: 7500 | D48: 7520 | E48: Non-capital only | F48: 1.619
C49: 7500 | D49: 7550 | E49: N/A5
C50: 7500 | D50: 7570 | E50: Capital only | F50: 5.017
B51: Photovoltaic (gross) | C51: 9700 | D51: 9700 | E51: Capital and Non-capital | F51: 6.636
C52: 9700 | D52: 9750 | E52: N/A5
C53: 9700 | D53: 9770 | E53: Capital only | F53: 5.017
B54: Photovoltaic (net) | C54: 9800 | D54: 9800 | E54: Capital and Non-capital | F54: 6.636
C55: 9800 | D55: 9820 | E55: Non-capital only | F55: 1.619
C56: 9800 | D56: 9850 | E56: N/A5
C57: 9800 | D57: 9870 | E57: Capital only | F57: 5.017
B58: Photovoltaic (net with FiT) | C58: 9900 | D58: 9900 | E58: Capital and Non-capital | F58: 6.636
C59: 9900 | D59: 9950 | E59: N/A5
C60: 9900 | D60: 9970 | E60: Capital only | F60: 5.017
A61: Notes: 1. All prices exclude GST. 2. Tariffs available since 1 July 2017 subject to metering. 3. The capital component applies to all existing Type 6 meter connections before 1 July 2015 regardless of whether customers elect to churn to an alternative meter provider or upgrades. Churning customer will continue to pay the capital component on an on-going basis to recover the residual value of the stranded assets. 4. Non-capital charge comprises ongoing Energex initiated meter maintenance, cyclic meter reading and data storage and provision. The non-capital component applies to both existing and new/additional Type 6 meter connections. To clarify, the non-capital component will not apply to churning metering customers. 5. Metering charges for Type 1-4 meters are not regulated, therefore Energex does not pass on a charge to these customers.

Sheet Services with no charge
A1: Category | B1: Description | C1: Product code | D1: Full description | E1: Peace charge code | F1: Price
F2: ($)
A3: New Connections | B3: U/G Perm Supply - CT BH | C3: NCUP2MB | D3: New underground connection. CT. BH. | E3: 100 | F3: -
B4: U/G Perm Supply - No CT BH | C4: NCUP1MB | D4: New underground connection. No CT. BH. | E4: 158 | F4: -
B5: U/G Perm Supply - CT AH | C5: NCUP2MA | D5: New underground connection. CT. AH. | E5: 106 | F5: -
B6: U/G Perm Supply - No CT AH | C6: NCUP1MA | D6: New underground connection. No CT. AH. | E6: 156 | F6: -
B7: U/G Perm Supply - CT Anytime | C7: NCUP2MT | D7: New underground connection. CT. Anytime. | E7: 118 | F7: -
B8: U/G Perm Supply - No CT Anytime | C8: NCUP1MT | D8: New underground connection. No CT. Anytime. | E8: 116 | F8: -
B9: O/H Perm Supply - CT BH | C9: NCOP2MB | D9: New overhead connection. CT. BH. | E9: 104 | F9: -
B10: O/H Perm Supply - No CT BH | C10: NCOP1MB | D10: New overhead connection. No CT. BH. | E10: 102 | F10: -
B11: O/H Perm Supply - CT AH | C11: NCOP2MA | D11: New overhead connection. CT. AH. | E11: 110 | F11: -
B12: O/H Perm Supply - No CT AH | C12: NCOP1MA | D12: New overhead connection. No CT. AH. | E12: 108 | F12: -
B13: O/H Perm Supply - CT Anytime | C13: NCOP2MT | D13: New overhead connection. CT. Anytime. | E13: 114 | F13: -
B14: O/H Perm Supply - No CT Anytime | C14: NCOP1MT | D14: New overhead connection. No CT. Anytime. | E14: 112 | F14: -
B15: Temp/Perm - CT BH | C15: NCTP2MB | D15: New temporary connection in permanent. CT. BH. | E15: 150 | F15: -
B16: Temp/Perm - No CT BH | C16: NCTP1MB | D16: New temporary connection in permanent. No CT. BH. | E16: 148 | F16: -
B17: Temp/Perm - CT AH | C17: NCTP2MA | D17: New temporary connection in permanent. CT. AH. | E17: 134 | F17: -
B18: Temp/Perm - No CT AH | C18: NCTP1MA | D18: New temporary connection in permanent. No CT. AH. | E18: 132 | F18: -
B19: Temp/Perm - CT Anytime | C19: NCTP2MT | D19: New temporary connection in permanent. CT. Anytime. | E19: 138 | F19: -
B20: Temp/Perm - No CT Anytime | C20: NCTP1MT | D20: New temporary connection in permanent. No CT. Anytime. | E20: 136 | F20: -
A21: Unmetered Supply | B21: UMS Connection Point Available | C21: NCUMSC | D21: New unmetered connection where connection point is available. | E21: 152 | F21: -
B22: UMS Connection Point Not Available | C22: NCUMSCN | D22: New unmetered connection where connection point is unavailable. | E22: 153 | F22: -
A23: No Charge | B23: No Charge | C23: No Charge | D23: No Charge | E23: 9999 | F23: -
A25: Category | B25: Description | C25: Product code | D25: Full description | E25: Peace charge code | F25: Price
F26: ($)
A27: Additions & Alterations | B27: Remove Meter - CT | C27: AARM2M | D27: Adds & Alts: Remove meter. CT. BH | E27: 526 | F27: -
B28: Remove Meter - No CT | C28: AARM1M | D28: Adds & Alts: Remove meter. No CT. BH. | E28: 524 | F28: -
A29: Meter Investigations | B29: Tamper - CT B/H Only | C29: MIT2MB | D29: Investigate meter for tampering. CT. BH. | E29: 710 | F29: -
B30: Tamper - No CT B/H Only | C30: MIT1MB | D30: Investigate meter for tampering. No CT. BH. | E30: 708 | F30: -

Sheet Public Lighting 2018-19
A1: 2017-18 Street Light Utility Charges
A3: $/Day | B3: Category | C3: 2018-191
A4: Major Street Lights | B4: non-contributed | C4: 0.843
B5: contributed | C5: 0.293
A6: Minor Street Lights | B6: non-contributed | C6: 0.387
B7: contributed | C7: 0.142
A8: Notes: 1. All prices exclude GST.
